[Event "Early-Titled-Tuesday-Blitz-January-30-2024"]
[Site "Chess.com"]
[Date "2024.01.30"]
[Round "8"]
[White "aistrel"]
[Black "rikchessmx"]
[Result "1-0"]
[WhiteElo "2514"]
[BlackElo "2335"]
[TimeControl "180+1"]
[EndTime "9:29:04 PST"]
[Termination "aistrel won by resignation"]

1. d4 {[%clk 0:03:00.9]} 1... Nf6 {[%clk 0:02:59.6]} 2. c4 {[%clk 0:03:01]} 2...
e6 {[%clk 0:03:00.5]} 3. Nf3 {[%clk 0:03:00.1]} 3... d5 {[%clk 0:03:01.4]} 4. g3
{[%clk 0:02:59.9]} 4... dxc4 {[%clk 0:03:00.8]} 5. Qa4+ {[%clk 0:02:58.6]} 5...
Nbd7 {[%clk 0:02:59.9]} 6. Qxc4 {[%clk 0:02:58.6]} 6... a6 {[%clk 0:02:59.7]} 7.
a4 {[%clk 0:02:53.8]} 7... b5 {[%clk 0:02:59.3]} 8. Qc2 {[%clk 0:02:52.7]} 8...
Bb7 {[%clk 0:02:58.2]} 9. axb5 {[%clk 0:02:53]} 9... axb5 {[%clk 0:02:58]} 10.
Rxa8 {[%clk 0:02:51.1]} 10... Qxa8 {[%clk 0:02:57.9]} 11. Bg2 {[%clk 0:02:51.6]}
11... Bd6 {[%clk 0:02:57.2]} 12. Nc3 {[%clk 0:02:49.3]} 12... c6 {[%clk
0:02:39]} 13. e4 {[%clk 0:02:46.9]} 13... Bb4 {[%clk 0:02:36.6]} 14. O-O {[%clk
0:02:46.1]} 14... O-O {[%clk 0:02:35.7]} 15. e5 {[%clk 0:02:40.3]} 15... Nd5
{[%clk 0:02:33.9]} 16. Ng5 {[%clk 0:02:33.9]} 16... g6 {[%clk 0:02:31.8]} 17.
Nxd5 {[%clk 0:02:30.3]} 17... cxd5 {[%clk 0:02:30.2]} 18. Qe2 {[%clk 0:02:21.4]}
18... Be7 {[%clk 0:02:23.1]} 19. h4 {[%clk 0:02:19.4]} 19... b4 {[%clk
0:02:18.7]} 20. Re1 {[%clk 0:02:16.5]} 20... Rc8 {[%clk 0:02:12.2]} 21. h5
{[%clk 0:02:15.6]} 21... Ba6 {[%clk 0:02:10.2]} 22. Qe3 {[%clk 0:02:10.3]} 22...
Nb6 {[%clk 0:01:59.7]} 23. Nxh7 {[%clk 0:02:05.4]} 23... Kxh7 {[%clk 0:01:57.7]}
24. hxg6+ {[%clk 0:01:57.6]} 24... fxg6 {[%clk 0:01:56.2]} 25. Qh6+ {[%clk
0:01:57.8]} 25... Kg8 {[%clk 0:01:56.5]} 26. Qxg6+ {[%clk 0:01:58.7]} 26... Kh8
{[%clk 0:01:56.7]} 27. Qh6+ {[%clk 0:01:54.8]} 27... Kg8 {[%clk 0:01:56.1]} 28.
Qxe6+ {[%clk 0:01:55.3]} 28... Kf8 {[%clk 0:01:55.4]} 29. Qg6 {[%clk 0:01:52.1]}
29... Rxc1 {[%clk 0:01:47.5]} 30. Rxc1 {[%clk 0:01:53]} 30... Qb7 {[%clk
0:01:46]} 31. Rc6 {[%clk 0:01:51.6]} 31... Bd8 {[%clk 0:01:36.1]} 32. Re6 {[%clk
0:01:51.7]} 32... Bb5 {[%clk 0:01:35]} 33. Rd6 {[%clk 0:01:43.4]} 33... Qc7
{[%clk 0:01:10.5]} 34. Qh6+ {[%clk 0:01:34.3]} 34... Ke8 {[%clk 0:01:04]} 35.
Qh8+ {[%clk 0:01:22.5]} 35... Kf7 {[%clk 0:00:58.8]} 36. Qxd8 {[%clk 0:01:18.1]}
36... Qxd8 {[%clk 0:00:56.7]} 37. Rxd8 {[%clk 0:01:17.2]} 37... Ke7 {[%clk
0:00:56.1]} 38. Rd6 {[%clk 0:01:14.3]} 38... Na4 {[%clk 0:00:50.2]} 39. b3
{[%clk 0:00:56.2]} 39... Nc3 {[%clk 0:00:50]} 40. Bxd5 {[%clk 0:00:56.6]} 40...
Ne2+ {[%clk 0:00:50.2]} 41. Kg2 {[%clk 0:00:52.7]} 41... Nxd4 {[%clk 0:00:51.1]}
42. Bc4 {[%clk 0:00:51.7]} 42... Bxc4 {[%clk 0:00:51]} 43. bxc4 {[%clk
0:00:51.3]} 43... Ne6 {[%clk 0:00:43]} 44. Rb6 {[%clk 0:00:48.6]} 1-0

[Event "Early-Titled-Tuesday-Blitz-January-30-2024"]
[Site "Chess.com"]
[Date "2024.01.30"]
[Round "8"]
[White "akinov-akinseye"]
[Black "familijatop71"]
[Result "0-1"]
[WhiteElo "1910"]
[BlackElo "2238"]
[TimeControl "180+1"]
[EndTime "9:29:05 PST"]
[Termination "familijatop71 won by resignation"]

1. d4 {[%clk 0:02:58.9]} 1... Nf6 {[%clk 0:02:56.5]} 2. Nf3 {[%clk 0:02:54.4]}
2... g6 {[%clk 0:02:55.4]} 3. e3 {[%clk 0:02:47]} 3... Bg7 {[%clk 0:02:55.6]} 4.
Bd3 {[%clk 0:02:45.4]} 4... O-O {[%clk 0:02:55.3]} 5. c3 {[%clk 0:02:45.5]} 5...
d6 {[%clk 0:02:55.4]} 6. O-O {[%clk 0:02:45.4]} 6... c5 {[%clk 0:02:53.8]} 7.
Nbd2 {[%clk 0:02:44.1]} 7... cxd4 {[%clk 0:02:51.9]} 8. cxd4 {[%clk 0:02:42.5]}
8... Re8 {[%clk 0:02:51.5]} 9. e4 {[%clk 0:02:40.2]} 9... e5 {[%clk 0:02:49.8]}
10. Nb3 {[%clk 0:02:30.7]} 10... b6 {[%clk 0:02:46.7]} 11. Bg5 {[%clk
0:02:29.6]} 11... Nbd7 {[%clk 0:02:40.7]} 12. Re1 {[%clk 0:02:25.6]} 12... h6
{[%clk 0:02:34.9]} 13. Be3 {[%clk 0:02:16]} 13... Kh7 {[%clk 0:02:29.4]} 14. Qd2
{[%clk 0:02:14.1]} 14... Ng4 {[%clk 0:02:28.9]} 15. d5 {[%clk 0:02:10.7]} 15...
Nxe3 {[%clk 0:02:28.4]} 16. Qxe3 {[%clk 0:02:08]} 16... Nc5 {[%clk 0:02:27.8]}
17. Nxc5 {[%clk 0:02:00.8]} 17... bxc5 {[%clk 0:02:27.9]} 18. Bb5 {[%clk
0:01:56.1]} 18... Rf8 {[%clk 0:02:21.5]} 19. Rac1 {[%clk 0:01:51.9]} 19... Rb8
{[%clk 0:02:20.6]} 20. a4 {[%clk 0:01:49.7]} 20... a6 {[%clk 0:02:21]} 21. Bc6
{[%clk 0:01:44.9]} 21... Rxb2 {[%clk 0:02:20.9]} 22. Qc3 {[%clk 0:01:43.3]}
22... Rb4 {[%clk 0:02:07.9]} 23. Rb1 {[%clk 0:01:40.1]} 23... a5 {[%clk
0:01:52.2]} 24. Nd2 {[%clk 0:01:33.9]} 24... f5 {[%clk 0:01:46.5]} 25. f3 {[%clk
0:01:30.9]} 25... fxe4 {[%clk 0:01:45.2]} 26. Nxe4 {[%clk 0:01:18.7]} 26... Bf5
{[%clk 0:01:35.5]} 27. Qd3 {[%clk 0:00:51.7]} 27... Bxe4 {[%clk 0:01:17.4]} 28.
fxe4 {[%clk 0:00:51.4]} 28... Qf6 {[%clk 0:01:13.3]} 29. Qe2 {[%clk 0:00:30.6]}
29... Qg5 {[%clk 0:00:55.9]} 30. h3 {[%clk 0:00:22.4]} 30... Rfb8 {[%clk
0:00:54.9]} 31. Rf1 {[%clk 0:00:19.2]} 31... Rxb1 {[%clk 0:00:53.8]} 0-1

[Event "Early-Titled-Tuesday-Blitz-January-30-2024"]
[Site "Chess.com"]
[Date "2024.01.30"]
[Round "8"]
[White "KhazhatulyAlikhan"]
[Black "DefiantChair"]
[Result "0-1"]
[WhiteElo "2403"]
[BlackElo "2589"]
[TimeControl "180+1"]
[EndTime "9:29:06 PST"]
[Termination "DefiantChair won on time"]

1. e4 {[%clk 0:03:00.9]} 1... c5 {[%clk 0:02:55.2]} 2. Nf3 {[%clk 0:02:59.1]}
2... d6 {[%clk 0:02:51.9]} 3. d4 {[%clk 0:02:59]} 3... cxd4 {[%clk 0:02:52.8]}
4. Nxd4 {[%clk 0:02:59.8]} 4... Nf6 {[%clk 0:02:53.3]} 5. Nc3 {[%clk 0:03:00]}
5... a6 {[%clk 0:02:53.3]} 6. Be2 {[%clk 0:02:57]} 6... e5 {[%clk 0:02:52.3]} 7.
Nb3 {[%clk 0:02:56.6]} 7... Be7 {[%clk 0:02:52.5]} 8. O-O {[%clk 0:02:57.2]}
8... O-O {[%clk 0:02:52.1]} 9. Be3 {[%clk 0:02:57.8]} 9... Be6 {[%clk
0:02:51.2]} 10. h3 {[%clk 0:02:52.2]} 10... Nbd7 {[%clk 0:02:50.4]} 11. Qd2
{[%clk 0:02:52.9]} 11... Rc8 {[%clk 0:02:45.3]} 12. Rad1 {[%clk 0:02:53.2]}
12... Qc7 {[%clk 0:02:43.8]} 13. Kh1 {[%clk 0:02:50.2]} 13... b5 {[%clk
0:02:42.4]} 14. f4 {[%clk 0:02:43.6]} 14... b4 {[%clk 0:02:33.4]} 15. Nd5 {[%clk
0:02:42.6]} 15... Bxd5 {[%clk 0:02:32]} 16. exd5 {[%clk 0:02:43.1]} 16... Qxc2
{[%clk 0:02:30.5]} 17. Bxa6 {[%clk 0:01:27.6]} 17... Qxd2 {[%clk 0:02:28.8]} 18.
Bxd2 {[%clk 0:00:51]} 18... Ra8 {[%clk 0:02:20.1]} 19. Bb5 {[%clk 0:00:50.6]}
19... Rxa2 {[%clk 0:02:19]} 20. Bxb4 {[%clk 0:00:41.2]} 20... Rxb2 {[%clk
0:02:13.4]} 21. Rf3 {[%clk 0:00:26.9]} 21... Rb8 {[%clk 0:02:10.3]} 22. Bxd7
{[%clk 0:00:17.3]} 22... Nxd7 {[%clk 0:02:11.2]} 23. Na5 {[%clk 0:00:09.8]}
23... R2xb4 {[%clk 0:02:01]} 24. Nc6 {[%clk 0:00:10.3]} 24... Rb1 {[%clk
0:02:01.1]} 25. Rxb1 {[%clk 0:00:08]} 25... Rxb1+ {[%clk 0:02:00.3]} 26. Kh2
{[%clk 0:00:08.9]} 26... Bf6 {[%clk 0:02:00.3]} 27. Ra3 {[%clk 0:00:07.7]} 27...
h5 {[%clk 0:01:58]} 28. Ra7 {[%clk 0:00:05.7]} 28... Nc5 {[%clk 0:01:55.1]} 29.
Ra8+ {[%clk 0:00:04.1]} 29... Kh7 {[%clk 0:01:54.5]} 30. Rf8 {[%clk 0:00:04.8]}
30... exf4 {[%clk 0:01:53.5]} 31. Rxf7 {[%clk 0:00:04.8]} 31... Ne4 {[%clk
0:01:52.9]} 32. g3 {[%clk 0:00:02.2]} 32... Rb2+ {[%clk 0:01:49.4]} 33. Kg1
{[%clk 0:00:01.9]} 33... f3 {[%clk 0:01:48.6]} 34. g4 {[%clk 0:00:01.1]} 34...
Rg2+ {[%clk 0:01:47.7]} 35. Kf1 {[%clk 0:00:01.3]} 35... Ng3+ {[%clk 0:01:45.6]}
36. Ke1 {[%clk 0:00:01.5]} 36... f2+ {[%clk 0:01:45.9]} 37. Kd2 {[%clk
0:00:02.4]} 37... f1=Q+ {[%clk 0:01:46.5]} 38. Ke3 {[%clk 0:00:03.3]} 38... Re2+
{[%clk 0:01:44.2]} 39. Kd3 {[%clk 0:00:01.5]} 39... Qd1+ {[%clk 0:01:43.8]} 40.
Kc4 {[%clk 0:00:01.9]} 40... Qc2+ {[%clk 0:01:40.1]} 41. Kb5 {[%clk 0:00:02.4]}
41... Qc5+ {[%clk 0:01:40.1]} 42. Ka6 {[%clk 0:00:02]} 42... Rb2 {[%clk
0:01:40.4]} 0-1

[Event "Early-Titled-Tuesday-Blitz-January-30-2024"]
[Site "Chess.com"]
[Date "2024.01.30"]
[Round "8"]
[White "GelmanAlexander"]
[Black "FREDERICKtheMATE"]
[Result "1-0"]
[WhiteElo "2790"]
[BlackElo "2584"]
[TimeControl "180+1"]
[EndTime "9:29:07 PST"]
[Termination "GelmanAlexander won by checkmate"]

1. c4 {[%clk 0:03:00.9]} 1... c5 {[%clk 0:02:59.8]} 2. Nf3 {[%clk 0:03:00.8]}
2... g6 {[%clk 0:02:59.6]} 3. d3 {[%clk 0:03:01]} 3... Bg7 {[%clk 0:02:59.3]} 4.
e3 {[%clk 0:03:00.9]} 4... Nf6 {[%clk 0:02:57.6]} 5. Be2 {[%clk 0:03:01.3]} 5...
O-O {[%clk 0:02:57.2]} 6. O-O {[%clk 0:03:01]} 6... Nc6 {[%clk 0:02:57.9]} 7. a3
{[%clk 0:03:01]} 7... d5 {[%clk 0:02:57.5]} 8. cxd5 {[%clk 0:03:01]} 8... Nxd5
{[%clk 0:02:58.4]} 9. Qc2 {[%clk 0:03:01.4]} 9... Qd6 {[%clk 0:02:57.5]} 10.
Nbd2 {[%clk 0:03:01.7]} 10... b6 {[%clk 0:02:55.8]} 11. Ne4 {[%clk 0:03:02]}
11... Qc7 {[%clk 0:02:55.5]} 12. Bd2 {[%clk 0:03:02.5]} 12... Rd8 {[%clk
0:02:54.6]} 13. Rac1 {[%clk 0:03:02.8]} 13... Bb7 {[%clk 0:02:54.5]} 14. Qb1
{[%clk 0:03:02.8]} 14... Rac8 {[%clk 0:02:51.9]} 15. h3 {[%clk 0:03:00]} 15...
e5 {[%clk 0:02:49.5]} 16. Rfd1 {[%clk 0:02:59.7]} 16... Qe7 {[%clk 0:02:49.5]}
17. Ng3 {[%clk 0:02:57.8]} 17... h5 {[%clk 0:02:47.3]} 18. Qc2 {[%clk
0:02:52.9]} 18... h4 {[%clk 0:02:44.8]} 19. Ne4 {[%clk 0:02:52.6]} 19... f5
{[%clk 0:02:39.9]} 20. Qb3 {[%clk 0:02:51.2]} 20... Kh8 {[%clk 0:02:31.5]} 21.
Nc3 {[%clk 0:02:25.3]} 21... Nc7 {[%clk 0:02:24.1]} 22. Nb5 {[%clk 0:02:18.6]}
22... Nxb5 {[%clk 0:02:23.5]} 23. Qxb5 {[%clk 0:02:18.5]} 23... Bf6 {[%clk
0:02:20.1]} 24. b4 {[%clk 0:02:15.1]} 24... cxb4 {[%clk 0:02:16.5]} 25. axb4
{[%clk 0:02:14.2]} 25... Qg7 {[%clk 0:02:07.7]} 26. Qa4 {[%clk 0:02:05.7]} 26...
Ba8 {[%clk 0:01:45.7]} 27. b5 {[%clk 0:02:05.1]} 27... Nb8 {[%clk 0:01:45.8]}
28. Nxh4 {[%clk 0:01:57.8]} 28... e4 {[%clk 0:01:43.9]} 29. Rxc8 {[%clk
0:01:50.6]} 29... Rxc8 {[%clk 0:01:43.6]} 30. g3 {[%clk 0:01:41.4]} 30... Bxh4
{[%clk 0:01:42]} 31. gxh4 {[%clk 0:01:42.3]} 31... exd3 {[%clk 0:01:39.4]} 32.
Bxd3 {[%clk 0:01:41.1]} 32... Qb7 {[%clk 0:01:38]} 33. Qd4+ {[%clk 0:01:19.8]}
33... Kh7 {[%clk 0:01:35.3]} 34. e4 {[%clk 0:01:18.9]} 34... fxe4 {[%clk
0:01:33.8]} 35. Bb1 {[%clk 0:00:21.1]} 35... e3 {[%clk 0:01:28.6]} 36. Bxg6+
{[%clk 0:00:20.5]} 36... Kxg6 {[%clk 0:01:27.4]} 37. Qg4+ {[%clk 0:00:16.5]}
37... Kh7 {[%clk 0:01:25.6]} 38. Qf5+ {[%clk 0:00:13.7]} 38... Kh8 {[%clk
0:01:22.3]} 39. Bc3+ {[%clk 0:00:12.3]} 39... Rxc3 {[%clk 0:01:19.2]} 40. Rd8+
{[%clk 0:00:11.8]} 40... Kg7 {[%clk 0:01:19.5]} 41. Qf8+ {[%clk 0:00:05.9]}
41... Kh7 {[%clk 0:01:19.1]} 42. Qg8+ {[%clk 0:00:02.6]} 42... Kh6 {[%clk
0:01:18.4]} 43. Rd6+ {[%clk 0:00:03]} 43... Kh5 {[%clk 0:01:18.5]} 44. Qg5#
{[%clk 0:00:03.3]} 1-0

[Event "Early-Titled-Tuesday-Blitz-January-30-2024"]
[Site "Chess.com"]
[Date "2024.01.30"]
[Round "8"]
[White "tolia123"]
[Black "Juicy_Fork"]
[Result "1-0"]
[WhiteElo "2183"]
[BlackElo "2418"]
[TimeControl "180+1"]
[EndTime "9:29:08 PST"]
[Termination "tolia123 won on time"]

1. d4 {[%clk 0:03:00.9]} 1... Nf6 {[%clk 0:02:56.3]} 2. Nc3 {[%clk 0:03:00.9]}
2... d5 {[%clk 0:02:54.8]} 3. Bf4 {[%clk 0:03:01]} 3... g6 {[%clk 0:02:54.4]} 4.
Qd2 {[%clk 0:03:00.3]} 4... Bg7 {[%clk 0:02:54.2]} 5. Bh6 {[%clk 0:03:00.3]}
5... O-O {[%clk 0:02:52.7]} 6. O-O-O {[%clk 0:03:00.2]} 6... c5 {[%clk
0:02:52.6]} 7. Bxg7 {[%clk 0:02:59.6]} 7... Kxg7 {[%clk 0:02:52.3]} 8. dxc5
{[%clk 0:03:00.1]} 8... Qa5 {[%clk 0:02:49.2]} 9. f3 {[%clk 0:02:59.2]} 9... Nc6
{[%clk 0:02:46.3]} 10. e3 {[%clk 0:02:55.8]} 10... Qxc5 {[%clk 0:02:39.5]} 11.
g4 {[%clk 0:02:55.8]} 11... Be6 {[%clk 0:02:34]} 12. Nge2 {[%clk 0:02:48.2]}
12... Rac8 {[%clk 0:02:25.3]} 13. g5 {[%clk 0:02:45]} 13... Nd7 {[%clk 0:02:24]}
14. h4 {[%clk 0:02:42.3]} 14... Nde5 {[%clk 0:02:18.8]} 15. Nd4 {[%clk
0:02:37.8]} 15... Bd7 {[%clk 0:01:54.4]} 16. h5 {[%clk 0:02:35.5]} 16... Nc4
{[%clk 0:01:35.2]} 17. Bxc4 {[%clk 0:02:29.5]} 17... Qxc4 {[%clk 0:01:35.3]} 18.
hxg6 {[%clk 0:02:24.9]} 18... fxg6 {[%clk 0:01:24]} 19. Qh2 {[%clk 0:02:05.2]}
19... Rh8 {[%clk 0:01:18.8]} 20. Nxc6 {[%clk 0:02:00.7]} 20... bxc6 {[%clk
0:01:11.8]} 21. Qe5+ {[%clk 0:01:53.6]} 21... Kg8 {[%clk 0:00:35.1]} 22. Qxe7
{[%clk 0:01:51.4]} 22... Bf5 {[%clk 0:00:34.8]} 23. Rd4 {[%clk 0:01:36.2]} 23...
Qa6 {[%clk 0:00:30.6]} 24. Rdh4 {[%clk 0:01:35.4]} 24... h5 {[%clk 0:00:14.9]}
25. gxh6 {[%clk 0:01:34]} 25... Rh7 {[%clk 0:00:15.4]} 26. Qe5 {[%clk
0:01:10.7]} 26... Qb6 {[%clk 0:00:10.7]} 27. e4 {[%clk 0:01:03.3]} 27... Qe3+
{[%clk 0:00:04.1]} 28. Kb1 {[%clk 0:01:03.3]} 28... d4 {[%clk 0:00:02]} 29. Nd1
{[%clk 0:00:56.7]} 29... Qe2 {[%clk 0:00:02]} 30. R4h2 {[%clk 0:00:54.8]} 1-0

[Event "Early-Titled-Tuesday-Blitz-January-30-2024"]
[Site "Chess.com"]
[Date "2024.01.30"]
[Round "8"]
[White "Quattroporte300"]
[Black "Klavdia_Nik"]
[Result "1-0"]
[WhiteElo "2386"]
[BlackElo "2131"]
[TimeControl "180+1"]
[EndTime "9:29:08 PST"]
[Termination "Quattroporte300 won on time"]

1. e4 {[%clk 0:03:00.9]} 1... d6 {[%clk 0:02:07.9]} 2. d4 {[%clk 0:02:58.9]}
2... g6 {[%clk 0:02:05.8]} 3. Nf3 {[%clk 0:02:56.3]} 3... Bg7 {[%clk 0:02:04.4]}
4. Bc4 {[%clk 0:02:56.9]} 4... c6 {[%clk 0:02:03.4]} 5. h3 {[%clk 0:02:56.8]}
5... b5 {[%clk 0:02:03.2]} 6. Bb3 {[%clk 0:02:55.7]} 6... a5 {[%clk 0:02:03.3]}
7. a4 {[%clk 0:02:56.3]} 7... b4 {[%clk 0:02:02.1]} 8. O-O {[%clk 0:02:56.9]}
8... Nf6 {[%clk 0:01:58]} 9. Re1 {[%clk 0:02:56.6]} 9... O-O {[%clk 0:01:55.1]}
10. Nbd2 {[%clk 0:02:56.6]} 10... Qc7 {[%clk 0:01:48.7]} 11. Qe2 {[%clk
0:02:49.1]} 11... Nfd7 {[%clk 0:01:45.3]} 12. e5 {[%clk 0:02:35.6]} 12... e6
{[%clk 0:01:30]} 13. exd6 {[%clk 0:02:33.4]} 13... Qxd6 {[%clk 0:01:30.9]} 14.
Ne4 {[%clk 0:02:30.8]} 14... Qc7 {[%clk 0:01:29.3]} 15. Bg5 {[%clk 0:02:24.6]}
15... Re8 {[%clk 0:01:06.3]} 16. Rad1 {[%clk 0:02:22.7]} 16... h6 {[%clk
0:01:02.6]} 17. Bh4 {[%clk 0:02:22.1]} 17... Ba6 {[%clk 0:00:52.9]} 18. Qd2
{[%clk 0:02:18.8]} 18... Kh7 {[%clk 0:00:39.9]} 19. Bg3 {[%clk 0:02:17.9]} 19...
Qb6 {[%clk 0:00:29.4]} 20. Bd6 {[%clk 0:01:53.9]} 20... Nf6 {[%clk 0:00:12.8]}
21. Qf4 {[%clk 0:01:46.3]} 21... Nbd7 {[%clk 0:00:08.2]} 22. Nc5 {[%clk
0:01:32.4]} 22... Bc8 {[%clk 0:00:07.3]} 23. Ne5 {[%clk 0:01:24.6]} 23... Nxe5
{[%clk 0:00:04.5]} 24. dxe5 {[%clk 0:01:22.7]} 24... Nd5 {[%clk 0:00:04]} 25.
Qxf7 {[%clk 0:01:15.2]} 25... Rg8 {[%clk 0:00:04.3]} 26. Qf3 {[%clk 0:00:48.7]}
26... Ra7 {[%clk 0:00:02.9]} 27. Qd3 {[%clk 0:00:47.6]} 1-0

[Event "Early-Titled-Tuesday-Blitz-January-30-2024"]
[Site "Chess.com"]
[Date "2024.01.30"]
[Round "8"]
[White "cristianserban1"]
[Black "DavidGavrilescu18"]
[Result "0-1"]
[WhiteElo "2578"]
[BlackElo "2796"]
[TimeControl "180+1"]
[EndTime "9:29:09 PST"]
[Termination "DavidGavrilescu18 won by resignation"]

1. d4 {[%clk 0:02:59.3]} 1... e6 {[%clk 0:02:48]} 2. c4 {[%clk 0:02:57.7]} 2...
c5 {[%clk 0:02:48.3]} 3. d5 {[%clk 0:02:57.4]} 3... exd5 {[%clk 0:02:49.2]} 4.
cxd5 {[%clk 0:02:58.3]} 4... d6 {[%clk 0:02:50.1]} 5. Nc3 {[%clk 0:02:58.7]}
5... a6 {[%clk 0:02:50.7]} 6. a4 {[%clk 0:02:58.5]} 6... Ne7 {[%clk 0:02:50.8]}
7. Nf3 {[%clk 0:02:52.3]} 7... Ng6 {[%clk 0:02:48.5]} 8. h3 {[%clk 0:02:30.5]}
8... Be7 {[%clk 0:02:46.6]} 9. e4 {[%clk 0:02:30.8]} 9... O-O {[%clk 0:02:46.6]}
10. Bd3 {[%clk 0:02:28.1]} 10... Bf6 {[%clk 0:02:46.9]} 11. O-O {[%clk 0:02:27]}
11... Re8 {[%clk 0:02:47.4]} 12. Re1 {[%clk 0:02:25.7]} 12... Nd7 {[%clk
0:02:47.7]} 13. Bf1 {[%clk 0:02:22.7]} 13... Qc7 {[%clk 0:02:44.2]} 14. Nd2
{[%clk 0:02:20.1]} 14... Nde5 {[%clk 0:02:41.4]} 15. Nc4 {[%clk 0:02:15.9]}
15... Nxc4 {[%clk 0:02:38.6]} 16. Bxc4 {[%clk 0:02:16.8]} 16... Bd7 {[%clk
0:02:31.9]} 17. Qc2 {[%clk 0:02:03.6]} 17... b5 {[%clk 0:02:24.7]} 18. axb5
{[%clk 0:02:01]} 18... axb5 {[%clk 0:02:25.3]} 19. Rxa8 {[%clk 0:02:01.5]} 19...
Rxa8 {[%clk 0:02:25.7]} 20. Bf1 {[%clk 0:01:32]} 20... c4 {[%clk 0:02:18.6]} 21.
Nd1 {[%clk 0:01:15.7]} 21... h6 {[%clk 0:01:56.3]} 22. Be3 {[%clk 0:01:14.8]}
22... Qa5 {[%clk 0:01:51.7]} 23. Bd2 {[%clk 0:01:12.2]} 23... Qb6 {[%clk
0:01:34.2]} 24. Be3 {[%clk 0:01:10.7]} 24... Bd4 {[%clk 0:01:34.7]} 25. b3
{[%clk 0:01:04.3]} 25... Ne5 {[%clk 0:01:28.1]} 26. bxc4 {[%clk 0:01:01.5]}
26... bxc4 {[%clk 0:01:29]} 27. f4 {[%clk 0:00:43.6]} 27... Ba4 {[%clk
0:01:22.2]} 28. Qf2 {[%clk 0:00:39.1]} 28... Bxe3 {[%clk 0:01:15.2]} 29. Qxe3
{[%clk 0:00:15.8]} 29... Qxe3+ {[%clk 0:01:15]} 30. Nxe3 {[%clk 0:00:16.7]}
30... Nd3 {[%clk 0:01:15.4]} 31. Bxd3 {[%clk 0:00:16.6]} 31... cxd3 {[%clk
0:01:16.3]} 32. Nc4 {[%clk 0:00:14.7]} 32... Rc8 {[%clk 0:01:12]} 33. Ne3 {[%clk
0:00:06.7]} 33... d2 {[%clk 0:01:11.5]} 34. Rf1 {[%clk 0:00:04.6]} 34... Rc1
{[%clk 0:01:12]} 35. Kf2 {[%clk 0:00:04.9]} 35... Rxf1+ {[%clk 0:01:09.6]} 36.
Kxf1 {[%clk 0:00:04.7]} 36... d1=Q+ {[%clk 0:01:10.5]} 37. Nxd1 {[%clk
0:00:04.5]} 37... Bxd1 {[%clk 0:01:11.4]} 38. e5 {[%clk 0:00:05.4]} 38... Kf8
{[%clk 0:01:10.2]} 39. exd6 {[%clk 0:00:05.1]} 39... Ke8 {[%clk 0:01:10.7]} 40.
Kf2 {[%clk 0:00:05.1]} 40... Bb3 {[%clk 0:01:10.8]} 0-1

[Event "Early-Titled-Tuesday-Blitz-January-30-2024"]
[Site "Chess.com"]
[Date "2024.01.30"]
[Round "8"]
[White "ricaurtelopezj1955"]
[Black "AnaKuchava"]
[Result "1-0"]
[WhiteElo "2160"]
[BlackElo "2201"]
[TimeControl "180+1"]
[EndTime "9:29:13 PST"]
[Termination "ricaurtelopezj1955 won on time"]

1. e4 {[%clk 0:03:00.9]} 1... c5 {[%clk 0:02:54.9]} 2. d4 {[%clk 0:02:59.6]}
2... cxd4 {[%clk 0:02:52.9]} 3. c3 {[%clk 0:02:59.4]} 3... Nf6 {[%clk 0:02:51]}
4. e5 {[%clk 0:02:55]} 4... Nd5 {[%clk 0:02:50.4]} 5. Bc4 {[%clk 0:02:55.5]}
5... Nb6 {[%clk 0:02:49.4]} 6. Bb3 {[%clk 0:02:54.9]} 6... d5 {[%clk 0:02:32.4]}
7. cxd4 {[%clk 0:02:51.9]} 7... Bf5 {[%clk 0:02:31]} 8. Nc3 {[%clk 0:02:45.6]}
8... e6 {[%clk 0:02:26.2]} 9. Nf3 {[%clk 0:02:42.6]} 9... Nc6 {[%clk 0:02:25.4]}
10. O-O {[%clk 0:02:40.3]} 10... Be7 {[%clk 0:02:24.7]} 11. h3 {[%clk
0:02:39.4]} 11... Rc8 {[%clk 0:02:23.3]} 12. Bf4 {[%clk 0:02:32.8]} 12... O-O
{[%clk 0:02:12.9]} 13. Qd2 {[%clk 0:02:30]} 13... Nc4 {[%clk 0:01:55.7]} 14. Qe2
{[%clk 0:02:16.5]} 14... N6a5 {[%clk 0:01:46.3]} 15. Rac1 {[%clk 0:02:09.1]}
15... a6 {[%clk 0:01:39.6]} 16. Bc2 {[%clk 0:01:50.7]} 16... Bxc2 {[%clk
0:01:37]} 17. Rxc2 {[%clk 0:01:49.6]} 17... b5 {[%clk 0:01:32.2]} 18. Rfc1
{[%clk 0:01:48.3]} 18... Qd7 {[%clk 0:01:30.4]} 19. Nd1 {[%clk 0:01:45]} 19...
Nb6 {[%clk 0:01:28.7]} 20. b3 {[%clk 0:01:42.1]} 20... Ba3 {[%clk 0:01:26.4]}
21. Rxc8 {[%clk 0:01:29.8]} 21... Rxc8 {[%clk 0:01:21.9]} 22. Rxc8+ {[%clk
0:01:26.9]} 22... Qxc8 {[%clk 0:01:22.8]} 23. Qd2 {[%clk 0:01:20.2]} 23... Nc6
{[%clk 0:00:59.4]} 24. Bg5 {[%clk 0:01:04.4]} 24... Nb4 {[%clk 0:00:50.9]} 25.
Be7 {[%clk 0:01:03.1]} 25... Qc2 {[%clk 0:00:43.6]} 26. Bxb4 {[%clk 0:00:55.1]}
26... Qxd2 {[%clk 0:00:27.1]} 27. Bxd2 {[%clk 0:00:54.3]} 27... Be7 {[%clk
0:00:25]} 28. Ne1 {[%clk 0:00:52.7]} 28... Kf8 {[%clk 0:00:24.7]} 29. Nd3 {[%clk
0:00:52.8]} 29... Ke8 {[%clk 0:00:25.1]} 30. Bb4 {[%clk 0:00:52.5]} 30... Bd8
{[%clk 0:00:24]} 31. Nc5 {[%clk 0:00:49.9]} 1-0